bitfinex/quotes_SOLUSD_20260211
["timestamp","ask_amount","ask_price","bid_price","bid_amount"]
[1770845114908,1.75676891,80.604,80.57,12.72170123]
[1770845115217,1.75676891,80.599,80.563,0.28746315]
[1770845115916,1.75676891,80.597,80.56,12.72170123]
[1770845116085,1.75676891,80.597,80.556,0.29196107]
[1770845116606,1.75676891,80.589,80.55,12.72170123]
[1770845116908,1.75676891,80.589,80.551,0.29640426]
[1770845117689,1.75676891,80.589,80.535,49.88]
[1770845117690,1.75676891,80.579,80.541,0.30082042]
[1770845117901,12.41033532,80.578,80.543,0.30082042]
[1770845118209,57.1,80.583,80.551,0.30516503]
[1770845118390,1.75676891,80.569,80.531,0.30516503]
[1770845118905,1.75676891,80.569,80.53,12.72170123]
[1770845119318,57.12,80.569,80.521,0.30516503]
[1770845119526,1.75676891,80.568,80.521,0.30516503]
[1770845119713,14.47847014,80.54,80.506,0.30945869]
[1770845120010,14.17311378,80.539,80.506,0.30945869]
[1770845120392,1.75676891,80.538,80.5,12.72170123]
[1770845120595,1.75676891,80.538,80.504,12.4215926]
[1770845120795,1.75676891,80.538,80.506,0.31790055]
[1770845120997,1.75676891,80.538,80.496,0.31790055]
[1770845121199,1.75676891,80.538,80.506,12.4213307]
[1770845121503,12.41634487,80.539,80.511,0.32204419]
[1770845122196,12.41552342,80.545,80.511,0.32204419]
[1770845122391,12.72170123,80.56,80.51,12.92170123]
[1770845122392,12.41403282,80.554,80.52,12.72170123]
[1770845122610,1.72990758,80.553,80.521,0.32615289]
[1770845123314,1.72990758,80.549,80.513,0.32590419]
[1770845124006,1.72990758,80.539,80.51,0.2]
[1770845124304,1.72990758,80.537,80.51,0.2]
[1770845124511,1.72990758,80.529,80.51,0.2]
[1770845125609,1.72990758,80.529,80.476,49.7]
[1770845125610,1.72990758,80.519,80.47,13.04707387]
[1770845125917,1.72990758,80.499,80.459,12.75403007]
[1770845126116,1.72990758,80.499,80.459,12.42865743]
[1770845126290,12.72170123,80.49,80.451,0.32511136]
[1770845126488,1.72990758,80.489,80.451,0.32511136]
[1770845126911,1.72990758,80.479,80.45,12.43008079]
[1770845127114,1.72990758,80.479,80.445,12.43074394]
[1770845127332,1.8511289,80.544,80.471,0.32467106]
[1770845127622,1.8511289,80.519,80.471,0.32467106]
[1770845127921,57.1,80.518,80.471,0.32467106]
[1770845128121,1.8511289,80.517,80.481,0.32467106]
[1770845128418,14.57283013,80.52,80.483,0.32444803]
[1770845128637,5.36086188,80.546,80.482,12.42513854]
[1770845128638,142.67990073,80.6,80.511,1.87928368]
[1770845128920,142.67990073,80.6,80.484,49.64]
[1770845128921,43.42431761,80.6,80.531,1.87928368]
[1770845129113,43.42431761,80.6,80.501,4.61729252]
[1770845129114,12.72170123,80.58,80.541,1.87928368]
[1770845129312,57.22,80.587,80.541,1.87928368]
[1770845129500,57.22,80.587,80.55,12.72170123]
[1770845130214,57.22,80.587,80.56,12.72170123]
[1770845130414,56.14601884,80.6,80.555,12.41383365]
[1770845130415,12.40910331,80.586,80.555,12.41383365]
[1770845130609,1.8511289,80.609,80.57,12.72170123]
[1770845130815,1.8511289,80.608,80.57,12.72170123]
[1770845132198,1.8511289,80.608,80.56,12.72170123]
[1770845132419,31.00810196,80.625,80.58,12.72170123]
[1770845132719,31.00810196,80.625,80.569,1.87928368]
[1770845132720,1.8511289,80.618,80.57,12.41149229]
[1770845132892,1.8511289,80.609,80.57,12.72170123]
[1770845133097,1.8511289,80.609,80.58,12.72170123]
[1770845133306,1.8511289,80.619,80.571,12.41141353]
[1770845133517,1.8511289,80.61,80.58,12.72170123]
[1770845134007,1.8511289,80.621,80.59,12.72170123]
[1770845134516,57.44,80.62,80.59,12.72170123]
[1770845134713,12.40402386,80.619,80.59,12.72170123]
[1770845135116,1.8511289,80.618,80.584,1.87928368]
[1770845135416,1.8511289,80.617,80.59,12.72170123]
[1770845136718,1.8511289,80.615,80.58,12.72170123]
[1770845138709,1.8511289,80.607,80.57,12.72170123]
[1770845138904,1.8511289,80.607,80.58,12.72170123]
[1770845140109,1.8511289,80.607,80.571,1.87928368]
[1770845140319,1.8511289,80.607,80.58,12.72170123]
[1770845141022,12.40602436,80.606,80.58,12.69255317]
[1770845141627,57.4,80.605,80.58,12.69255317]
[1770845142706,12.40633219,80.604,80.58,14.57183685]
[1770845143523,1.8511289,80.603,80.57,12.69255317]
[1770845143910,1.8511289,80.603,80.561,1.87928368]
[1770845144108,1.8511289,80.601,80.56,12.69255317]
[1770845144823,1.8511289,80.597,80.56,12.69255317]
[1770845145022,12.69255317,80.59,80.552,1.87928368]
[1770845145226,1.8511289,80.588,80.552,1.87928368]
[1770845146122,1.8511289,80.588,80.55,12.69255317]
[1770845146429,57.4,80.589,80.57,12.69255317]
[1770845146723,57.4,80.589,80.561,1.87928368]
[1770845146900,1.8511289,80.588,80.561,1.87928368]
[1770845147512,12.40894933,80.587,80.561,1.87928368]
[1770845149309,57.4,80.589,80.571,1.87928368]
[1770845149857,57.42,80.59,80.571,1.87928368]
[1770845150445,57.42,80.589,80.571,1.87928368]
[1770845152738,57.42,80.589,80.562,1.79117887]
[1770845152739,12.40879535,80.588,80.562,1.79117887]
[1770845152946,12.40879535,80.588,80.563,1.79117887]
[1770845153164,12.40879535,80.588,80.57,12.69255317]
[1770845153648,57.42,80.589,80.571,1.79117887]
[1770845153845,1.72768306,80.616,80.58,12.69255317]
[1770845154033,1.72768306,80.608,80.57,14.48373204]
[1770845154229,1.72768306,80.608,80.571,1.79117887]
[1770845154542,57.42,80.615,80.591,1.79117887]
[1770845155147,12.40202401,80.632,80.601,1.79117887]
[1770845155453,12.40202401,80.632,80.581,43.43455652]
[1770845155454,57.42,80.631,80.61,14.48373204]
[1770845155651,57.42,80.631,80.581,43.43455652]
[1770845155652,1.72768306,80.67,80.62,12.69255317]
[1770845155952,1.72768306,80.659,80.618,1.79117887]
[1770845156135,57.74,80.658,80.62,12.69255317]
[1770845156330,1.72768306,80.657,80.618,1.79117887]
[1770845156652,1.72768306,80.655,80.618,1.79117887]
[1770845156835,43.39416781,80.656,80.601,1.79117887]
[1770845156836,1.72768306,80.639,80.601,1.79117887]
[1770845157041,1.72768306,80.637,80.601,1.79117887]
[1770845157242,1.72768306,80.673,80.631,1.79117887]
[1770845157456,1.72768306,80.649,80.609,1.79117887]
[1770845157750,1.72768306,80.648,80.61,12.69255317]
[1770845157956,1.72768306,80.639,80.601,1.79117887]
[1770845158146,1.72768306,80.639,80.611,1.79117887]
[1770845158454,37.9,80.649,80.621,1.79117887]
[1770845158753,1.72768306,80.657,80.621,1.79117887]
[1770845158754,12.39956353,80.648,80.621,1.79117887]
[1770845158958,12.39833366,80.656,80.631,1.79117887]
[1770845159258,57.96,80.665,80.631,1.79117887]
[1770845159259,14.12533668,80.661,80.64,12.69255317]
[1770845159558,30.99055735,80.67,80.64,12.69255317]
[1770845159559,57.92,80.667,80.64,14.48373204]
[1770845159938,0.1,80.68,80.661,1.79117887]
[1770845160159,0.1,80.68,80.67,14.48373204]
[1770845160671,0.1,80.72,80.673,1.79117887]
[1770845160950,6.47491193,80.772,80.712,1.79117887]
[1770845161139,6.47491193,80.772,80.7,12.69255317]
[1770845161140,1.72768306,80.771,80.74,12.69255317]
[1770845161548,43.32809269,80.779,80.75,12.69255317]
[1770845161844,43.32809269,80.779,80.74,12.69255317]
[1770845161845,1.72768306,80.778,80.74,12.69255317]
[1770845162046,1.72768306,80.759,80.703,1.79117887]
[1770845162232,1.72768306,80.757,80.721,1.79117887]
[1770845162433,12.37945505,80.779,80.721,1.79117887]
[1770845162641,49.48799974,80.828,80.721,1.79117887]
[1770845162642,0.1414934,80.791,80.77,12.69255317]
[1770845162951,12.37195031,80.828,80.76,12.69255317]
[1770845162952,12.37195031,80.828,80.78,12.69255317]
[1770845163134,12.37195031,80.828,80.723,49.5520111]
[1770845163135,1.90957331,80.819,80.704,266.40563042]
[1770845163334,111.34755281,80.828,80.75,12.69255317]
[1770845163335,1.90957331,80.799,80.75,12.69255317]
[1770845163558,1.90957331,80.827,80.79,12.69255317]
[1770845163737,1.90957331,80.827,80.761,17.34]
[1770845163934,1.90957331,80.827,80.79,12.69255317]
[1770845164136,1.90957331,80.799,80.713,30.64]
[1770845164640,6.47164361,80.826,80.704,303.57850908]
[1770845164641,1.90957331,80.803,80.78,12.69255317]
[1770845164953,1.90957331,80.789,80.75,12.69255317]
[1770845165151,1.90957331,80.789,80.74,12.69255317]
[1770845165334,1.90957331,80.779,80.73,12.69255317]
[1770845165539,1.90957331,80.769,80.72,12.69255317]
[1770845165849,1.90957331,80.769,80.73,12.69255317]
[1770845166157,12.69255317,80.78,80.74,12.69255317]
[1770845166458,1.90957331,80.769,80.72,12.69255317]
[1770845166859,12.38114104,80.768,80.721,12.38834999]
[1770845167240,12.69255317,80.78,80.74,12.69255317]
[1770845167440,12.69255317,80.78,80.721,43.35922497]
[1770845167441,1.90957331,80.779,80.73,12.69255317]
[1770845167645,12.69255317,80.76,80.721,12.38834999]
[1770845167936,43.32701996,80.781,80.71,12.69255317]
[1770845167937,1.90957331,80.749,80.71,12.69255317]
[1770845168143,14.60212648,80.76,80.71,12.69255317]
[1770845168344,1.90957331,80.759,80.71,12.69255317]
[1770845168544,1.90957331,80.769,80.72,12.69255317]
[1770845168740,12.37945505,80.779,80.731,12.38681547]
[1770845169138,12.69255317,80.77,80.731,12.38681547]
[1770845169564,1.90957331,80.778,80.731,12.38681547]
[1770845169769,12.37945505,80.779,80.731,12.38681547]
[1770845169965,1.90957331,80.769,80.725,12.38766743]
[1770845170266,12.69255317,80.76,80.725,12.38766743]
[1770845170767,12.69255317,80.76,80.676,49.58043576]
[1770845170768,14.29378096,80.748,80.7,12.69255317]
[1770845170941,12.69255317,80.75,80.71,12.69255317]
[1770845171141,12.3796083,80.778,80.73,12.69255317]
[1770845171341,12.37876445,80.784,80.74,12.69255317]
[1770845171837,12.37876445,80.784,80.703,4.61729252]
[1770845171838,12.69255317,80.78,80.703,4.61729252]
[1770845172042,12.37876445,80.784,80.74,12.69255317]
[1770845172451,12.69255317,80.77,80.73,12.69255317]
[1770845172659,1.90957331,80.779,80.73,12.69255317]
[1770845173470,1.90957331,80.777,80.73,12.69255317]
[1770845174043,1.90957331,80.759,80.723,61.78789453]
[1770845174239,1.90957331,80.773,80.723,61.78789453]
[1770845174439,12.3796083,80.778,80.74,12.69255317]
[1770845174659,12.3796083,80.778,80.73,12.69255317]
[1770845174868,1.90957331,80.777,80.74,12.69255317]
[1770845175050,1.90957331,80.777,80.73,12.69255317]
[1770845175257,1.90957331,80.777,80.74,12.69255317]
[1770845175565,12.69255317,80.77,80.734,12.38621245]
[1770845175765,12.37991482,80.776,80.74,12.69255317]
[1770845175946,12.37991482,80.776,80.734,12.38621245]
[1770845176259,1.90957331,80.775,80.734,12.38621245]
[1770845176462,12.37991482,80.776,80.672,49.58316778]
[1770845176463,1.90957331,80.749,80.672,49.58316778]
[1770845176655,1.90957331,80.739,80.69,12.69255317]
[1770845176858,1.90957331,80.754,80.7,12.69255317]
[1770845177054,12.69255317,80.74,80.7,12.69255317]
[1770845177253,1.90957331,80.743,80.71,12.69255317]
[1770845177442,12.38480538,80.745,80.711,12.38988489]
[1770845177988,12.38480538,80.745,80.7,12.69255317]
[1770845177989,12.69255317,80.74,80.7,12.69255317]
[1770845178466,12.69255317,80.75,80.699,12.39171467]
[1770845178671,12.38323463,80.755,80.699,12.39171467]
[1770845178672,1.90957331,80.739,80.7,12.69255317]
[1770845178878,1.90957331,80.748,80.7,12.69255317]
[1770845179369,1.90957331,80.748,80.71,12.69255317]
[1770845179568,1.90957331,80.746,80.7,12.69255317]
[1770845179766,12.69255317,80.74,80.7,12.69255317]
[1770845180568,1.90957331,80.739,80.69,12.69255317]
[1770845180767,1.90957331,80.729,80.691,49.36]
[1770845181673,1.90957331,80.729,80.692,43.37480791]
[1770845181871,1.90957331,80.728,80.692,12.39280226]
[1770845182256,1.90957331,80.728,80.684,12.39400373]
[1770845182578,1.90957331,80.709,80.683,49.34]
[1770845182769,1.90957331,80.699,80.66,12.69255317]
[1770845183372,1.90957331,80.699,80.628,49.61050066]
[1770845183373,1.90957331,80.679,80.64,12.69255317]
[1770845183669,14.30445432,80.679,80.641,12.40063987]
[1770845185791,12.39488101,80.679,80.641,12.40063987]
[1770845186083,1.90957331,80.678,80.641,12.40063987]
[1770845186253,12.69255317,80.67,80.641,12.40063987]
[1770845186460,1.90957331,80.669,80.636,12.4014088]
[1770845187487,1.90957331,80.678,80.636,12.4014088]
[1770845188181,1.90957331,80.678,80.604,49.62507053]
[1770845188182,12.69255317,80.67,80.624,12.40325461]
[1770845188483,1.90957331,80.669,80.628,49.32]
[1770845188690,1.90957331,80.659,80.628,49.32]
[1770845188861,1.90957331,80.649,80.628,49.32]
[1770845189056,1.90957331,80.649,80.618,12.40403393]
[1770845189575,1.90957331,80.639,80.593,12.40802551]
[1770845189878,1.90957331,80.639,80.6,12.69255317]
[1770845190381,1.90957331,80.651,80.61,12.69255317]
[1770845190676,1.90957331,80.651,80.62,12.69255317]
[1770845190883,14.60212648,80.66,80.62,12.69255317]
[1770845191562,1.90957331,80.66,80.62,12.69255317]
[1770845191875,1.90957331,80.66,80.622,12.4035623]
[1770845191876,12.39787252,80.659,80.622,12.4035623]
[1770845192291,12.39623392,80.67,80.63,12.69255317]
[1770845192584,25.08878709,80.67,80.631,49.28]
[1770845193363,12.69255317,80.66,80.632,12.40202401]
[1770845193581,1.90957331,80.661,80.632,12.40202401]
[1770845194880,1.90957331,80.659,80.631,49.3]
[1770845195180,1.90957331,80.659,80.627,12.40265511]
[1770845195558,12.69255317,80.65,80.627,12.40265511]
[1770845195760,12.69255317,80.64,80.621,49.3]
[1770845197063,1.90957331,80.639,80.621,49.3]
[1770845197269,12.69255317,80.63,80.604,49.3]
[1770845197469,12.69255317,80.63,80.606,12.40595092]
[1770845198570,14.31052074,80.639,80.606,12.40595092]
[1770845199272,1.90957331,80.638,80.606,12.40595092]
[1770845199585,1.90957331,80.629,80.601,12.40671379]
[1770845199786,1.90957331,80.629,80.56,49.65230517]
[1770845199787,1.90957331,80.629,80.599,49.32]
[1770845200686,1.90957331,80.629,80.591,12.40833343]
[1770845200886,1.90957331,80.619,80.588,49.3]
[1770845201088,1.90957331,80.619,80.58,12.68899897]
[1770845201388,1.90957331,80.619,80.581,49.3]
[1770845201788,1.90957331,80.609,80.581,49.3]
[1770845202984,12.68899897,80.61,80.581,49.3]
[1770845202985,1.90957331,80.617,80.581,49.3]
[1770845203288,12.40417772,80.618,80.582,12.40971929]
[1770845203497,1.90957331,80.644,80.6,12.68899897]
[1770845203801,56.84,80.646,80.591,12.40833343]
[1770845203802,12.68899897,80.63,80.591,12.40833343]
[1770845203968,12.68899897,80.63,80.592,49.34]
[1770845204293,1.90957331,80.638,80.593,49.34]
[1770845204697,1.90957331,80.638,80.594,49.34]
[1770845204989,1.90957331,80.629,80.594,49.34]
[1770845205996,12.68899897,80.62,80.594,49.34]
[1770845206193,12.40263928,80.628,80.594,49.34]
[1770845206397,1.90957331,80.627,80.594,49.34]
[1770845206688,1.90957331,80.644,80.6,12.68899897]
[1770845207697,1.90957331,80.639,80.6,12.68899897]
[1770845208076,12.40110121,80.638,80.601,12.40679396]
[1770845208280,1.90957331,80.637,80.601,61.82679396]
[1770845209295,1.90957331,80.637,80.601,92.84377886]
[1770845209602,14.30898309,80.649,80.61,12.68899897]
[1770845209801,12.39940978,80.649,80.61,12.68899897]
[1770845210104,1.90957331,80.658,80.62,12.68899897]
[1770845210301,1.90957331,80.685,80.65,12.68899897]
[1770845210478,1.90957331,80.685,80.65,62.08899897]
[1770845210678,1.90957331,80.685,80.65,49.4]
[1770845210884,12.68899897,80.69,80.65,62.08899897]
[1770845211080,12.68899897,80.7,80.66,12.68899897]
[1770845211903,14.300445,80.705,80.66,12.68899897]
[1770845212105,12.68899897,80.7,80.661,49.46]
[1770845212307,1.90957331,80.689,80.661,49.46]
[1770845213228,1.90957331,80.669,80.6,4.61729252]
[1770845213390,1.90957331,80.669,80.62,12.68899897]
[1770845213590,12.68899897,80.66,80.621,49.44]
[1770845213805,56.82,80.689,80.621,49.44]
[1770845213806,12.68899897,80.68,80.64,12.68899897]
[1770845214001,1.90957331,80.679,80.641,49.48]
[1770845214298,12.68899897,80.68,80.641,12.40063987]
[1770845214603,12.68899897,80.68,80.641,43.40223955]
[1770845214801,12.68899897,80.68,80.641,12.40063987]
[1770845215104,1.90957331,80.679,80.642,49.48]
[1770845215286,1.90957331,80.679,80.641,12.40063987]
[1770845216295,12.39495277,80.678,80.641,12.40063987]
[1770845216494,1.90957331,80.677,80.642,49.48]
[1770845217190,56.78,80.698,80.642,49.48]
[1770845217191,1.90957331,80.704,80.642,49.48]
[1770845217383,12.68899897,80.69,80.642,49.48]
[1770845217704,1.90957331,80.689,80.643,49.56]
[1770845218292,12.39341661,80.688,80.644,12.40017856]
[1770845218508,12.39341661,80.688,80.645,49.56]
[1770845218710,12.39341661,80.688,80.644,12.40017856]
[1770845218711,1.90957331,80.687,80.644,12.40017856]
[1770845218889,1.90957331,80.679,80.645,49.56]
[1770845219088,12.68899897,80.68,80.644,12.40017856]
[1770845219291,12.68899897,80.68,80.645,49.56]
[1770845219513,1.90957331,80.687,80.645,49.56]
[1770845219810,1.90957331,80.687,80.646,49.56]
[1770845220190,1.90957331,80.687,80.644,12.40017856]
[1770845220390,1.90957331,80.687,80.646,49.56]
[1770845220720,12.68899897,80.69,80.65,12.68899897]
[1770845220908,1.90957331,80.689,80.65,12.68899897]
[1770845221116,1.90957331,80.689,80.646,49.56]
[1770845221301,1.90957331,80.669,80.642,12.40040514]
[1770845221509,12.68899897,80.67,80.642,12.40040514]
[1770845221700,1.90957331,80.677,80.642,12.40040514]
[1770845222622,1.90957331,80.649,80.596,31.01890912]
[1770845222922,1.90957331,80.629,80.596,31.01890912]
[1770845223116,12.68899897,80.63,80.596,31.01890912]
[1770845223595,1.90957331,80.639,80.596,31.01890912]
[1770845224025,1.90957331,80.629,80.596,31.01890912]
[1770845224513,1.90957331,80.654,80.6,12.68899897]
[1770845224717,12.68899897,80.64,80.601,93.02377886]
[1770845225022,12.68899897,80.63,80.601,62.00679396]
[1770845225220,12.68899897,80.64,80.601,93.02377886]
[1770845225714,12.68899897,80.64,80.601,43.42377886]
[1770845225918,12.68899897,80.65,80.601,43.42377886]
[1770845226133,12.68899897,80.65,80.602,49.6]
[1770845227211,12.39940978,80.649,80.603,43.42270138]
[1770845227915,12.68899897,80.64,80.603,43.42270138]
[1770845228322,12.39940978,80.649,80.603,43.42270138]
[1770845228914,1.90957331,80.669,80.603,93.04864582]
[1770845229122,1.90957331,80.659,80.62,12.68899897]
[1770845229424,1.90957331,80.659,80.621,49.66]
[1770845229627,1.90957331,80.659,80.622,43.41246805]
[1770845230302,1.90957331,80.659,80.623,49.64]
[1770845231228,1.90957331,80.657,80.623,49.64]
[1770845231742,12.68899897,80.65,80.624,12.40325461]
[1770845232423,14.59857228,80.65,80.624,12.40325461]
[1770845232734,1.90957331,80.649,80.623,49.64]
[1770845233037,1.90957331,80.659,80.624,43.41139114]
[1770845233203,1.90957331,80.659,80.624,12.40325461]
[1770845234210,1.90957331,80.657,80.624,12.40325461]
[1770845235999,12.39833366,80.656,80.624,12.40325461]
[1770845236204,12.68899897,80.65,80.624,12.40325461]
[1770845236425,12.68899897,80.67,80.63,12.68899897]
[1770845236821,5.36086188,80.704,80.624,43.41139114]
[1770845236822,1.90957331,80.689,80.624,155.04068266]
[1770845237005,1.90957331,80.679,80.64,12.68899897]
[1770845237409,1.90957331,80.679,80.641,49.74]
[1770845238215,12.39495277,80.678,80.642,12.40048609]
[1770845238417,14.30452608,80.678,80.642,12.40048609]
[1770845239305,1.90957331,80.677,80.642,12.40048609]
[1770845239501,12.39495277,80.678,80.643,49.74]
[1770845239502,1.90957331,80.669,80.643,49.74]
[1770845240326,12.68899897,80.66,80.626,31.00717389]
[1770845240511,1.90957331,80.679,80.626,31.00717389]
[1770845240712,12.68899897,80.68,80.64,12.68899897]
[1770845241021,14.59857228,80.67,80.63,12.68899897]
[1770845241227,1.90957331,80.67,80.63,12.68899897]
[1770845241601,14.59857228,80.69,80.65,12.68899897]
[1770845241806,14.59857228,80.69,80.651,49.76]
[1770845242024,1.90957331,80.689,80.651,49.76]
[1770845242608,1.90957331,80.687,80.652,12.39894856]
[1770845242805,1.90957331,80.669,80.63,12.68899897]
[1770845243007,1.90957331,80.669,80.632,12.40202371]
[1770845243813,1.90957331,80.669,80.632,62.14202371]
[1770845244509,1.90957331,80.669,79.87,209.7209879]
[1770845244510,1.90957331,80.647,80.61,12.68899897]
[1770845244730,1.90957331,80.647,80.611,49.76]
[1770845246940,12.68899897,80.64,80.612,12.40510097]
[1770845247146,14.30944435,80.646,80.612,12.40510097]
[1770845247310,1.90957331,80.646,80.612,12.40510097]
[1770845247516,1.90957331,80.649,80.612,43.41785341]
[1770845248243,1.90957331,80.629,80.552,49.65702777]
[1770845248540,1.90957331,80.629,80.58,12.68899897]
[1770845248920,1.90957331,80.629,80.59,12.68899897]
[1770845249115,12.68899897,80.61,80.591,49.72]
[1770845249320,12.68899897,80.61,80.581,12.40987329]
[1770845249818,1.90957331,80.619,80.581,12.40987329]
[1770845250413,1.90957331,80.619,80.582,49.72]
[1770845251230,12.40417772,80.618,80.583,12.40956529]
[1770845251428,14.31375103,80.618,80.583,12.40956529]
[1770845251937,1.90957331,80.617,80.584,49.72]
[1770845252148,1.90957331,80.609,80.584,49.72]
[1770845253309,1.90957331,80.609,80.578,12.41033532]
[1770845253512,14.31518614,80.609,80.578,12.41033532]
[1770845254411,14.31518614,80.609,80.568,31.02959358]
[1770845254412,12.68899897,80.6,80.577,49.72]
[1770845254627,12.68899897,80.6,80.573,12.41104969]
[1770845254949,1.90957331,80.599,80.571,49.72]
[1770845255122,43.41951946,80.609,80.555,12.41374952]
[1770845255123,1.90957331,80.589,80.555,12.41374952]
[1770845255321,12.68899897,80.59,80.555,12.41374952]
[1770845255322,12.40879535,80.588,80.555,12.41374952]
[1770845255642,1.90957331,80.587,80.555,12.41374952]
[1770845256024,1.90957331,80.569,80.541,12.41603655]
[1770845256543,1.90957331,80.569,80.542,49.72]
[1770845256834,1.90957331,80.578,80.542,49.72]
[1770845257337,1.90957331,80.578,80.543,49.74]
[1770845257718,1.90957331,80.578,80.544,12.41557409]
[1770845257921,14.32006265,80.577,80.544,12.41557409]
[1770845258730,12.68899897,80.57,80.544,12.41557409]
[1770845259025,12.68899897,80.57,80.543,49.74]
[1770845259026,1.90957331,80.569,80.543,49.74]
[1770845259844,1.90957331,80.567,80.543,49.74]
[1770845261229,1.90957331,80.567,80.54,12.61608865]
[1770845261548,12.41069649,80.576,80.54,25.32263544]
[1770845261741,1.90957331,80.575,80.54,25.32263544]
[1770845261945,1.90957331,80.573,80.54,25.32263544]
[1770845262151,1.90957331,80.573,80.54,12.61608865]
[1770845262453,1.90957331,80.569,80.54,0.2]
[1770845263753,12.70654679,80.56,80.54,0.2]
[1770845264065,1.90957331,80.557,80.54,0.2]
[1770845264556,1.90957331,80.549,80.511,12.42066301]
[1770845265028,1.90957331,80.549,80.511,43.47232054]
[1770845265231,1.90957331,80.557,80.52,12.70654679]
[1770845265951,12.41372461,80.556,80.513,43.47124066]
[1770845266256,1.90957331,80.549,80.513,12.42035447]
[1770845266442,1.90957331,80.549,80.512,49.74]
[1770845267052,14.6161201,80.54,80.512,49.74]
[1770845267249,1.90957331,80.539,80.512,49.74]
[1770845267648,14.32597392,80.539,80.512,62.16042586]
[1770845267848,12.41480341,80.549,80.512,93.21169772]
[1770845268049,1.90957331,80.548,80.512,62.16042586]
[1770845269151,1.90957331,80.556,80.52,12.70654679]
[1770845269369,1.90957331,80.563,80.52,12.70654679]
[1770845269650,14.31975462,80.579,80.54,12.70654679]
[1770845269855,1.90957331,80.578,80.541,49.76]
[1770845271572,1.90957331,80.559,80.541,49.76]
[1770845271938,1.90957331,80.575,80.541,62.17594412]
[1770845272244,1.90957331,80.573,80.541,93.2160355]
[1770845272437,1.90957331,80.573,80.541,62.17594412]
[1770845272844,1.90957331,80.581,80.541,93.2160355]
[1770845273075,1.90957331,80.581,80.55,12.70654679]
[1770845273233,6.48776486,80.6,80.541,93.2160355]
[1770845273234,1.90957331,80.588,80.56,12.70654679]
[1770845273570,1.90957331,80.588,80.561,12.41295415]
[1770845275042,4.61729252,80.625,80.561,12.41295415]
[1770845275241,1.90957331,80.626,80.59,12.70654679]
[1770845275460,1.90957331,80.626,80.591,49.98]
[1770845276152,1.90957331,80.626,80.59,12.70654679]
[1770845276333,1.90957331,80.626,80.591,49.96]
[1770845276961,1.90957331,80.625,80.592,12.40817947]
[1770845277338,1.90957331,80.625,80.592,62.34817947]
[1770845277854,1.90957331,80.619,80.584,49.94]
[1770845278162,1.90957331,80.619,80.58,62.64654679]
[1770845278662,1.90957331,80.639,80.6,12.70654679]
[1770845278960,1.90957331,80.637,80.601,12.40679396]
[1770845280253,1.90957331,80.629,80.597,12.40739757]
[1770845280662,1.90957331,80.619,80.59,62.38841373]
[1770845280952,12.70654679,80.62,80.551,4.61729252]
[1770845280953,1.90957331,80.617,80.57,12.70654679]
[1770845281161,1.90957331,80.617,80.58,12.70654679]
[1770845281456,1.90957331,80.609,80.571,62.39141353]
[1770845281842,1.90957331,80.633,80.59,12.70654679]
[1770845282153,1.90957331,80.629,80.58,12.70654679]
[1770845282748,1.90957331,80.629,80.59,12.70654679]
[1770845283150,1.90957331,80.619,80.59,12.70654679]
[1770845283365,1.90957331,80.627,80.6,12.70654679]
[1770845283856,12.40127588,80.637,80.61,12.70654679]
[1770845283857,1.90957331,80.637,80.61,12.70654679]
[1770845284860,1.90957331,80.651,80.62,12.70654679]
[1770845285059,1.90957331,80.649,80.621,12.40371615]
[1770845285274,1.90957331,80.649,80.611,12.40516284]
[1770845285571,49.57701214,80.683,80.611,12.40516284]
[1770845285572,1.90957331,80.665,80.63,12.70654679]
[1770845285938,1.90957331,80.664,80.63,12.70654679]
[1770845286940,1.90957331,80.664,80.64,12.70654679]
[1770845288455,12.70654679,80.68,80.631,50.08]
[1770845288456,1.90957331,80.685,80.65,12.70654679]
[1770845288861,1.90957331,80.685,80.66,12.70654679]
[1770845289163,1.90957331,80.685,80.625,155.03875967]
[1770845289164,1.90957331,80.694,80.67,12.70654679]
[1770845289558,1.90957331,80.716,80.661,43.3914779]
[1770845289744,6.47831564,80.717,80.67,12.70654679]
[1770845289745,1.90957331,80.699,80.67,12.70654679]
[1770845289943,1.90957331,80.699,80.68,12.70654679]
[1770845290352,1.90957331,80.716,80.68,12.70654679]
[1770845290967,1.90957331,80.709,80.67,12.70654679]
[1770845291142,1.90957331,80.707,80.67,12.70654679]
[1770845291748,1.90957331,80.699,80.664,50.14]
[1770845291953,1.90957331,80.699,80.67,12.70654679]
[1770845292166,1.90957331,80.699,80.664,50.14]
[1770845292571,1.90957331,80.689,80.664,50.14]
[1770845292761,1.90957331,80.689,80.65,12.70654679]
[1770845292954,1.90957331,80.689,80.643,50.1]
[1770845293277,1.90957331,80.689,80.641,12.40051182]
[1770845293278,1.90957331,80.698,80.66,12.70654679]
[1770845293474,1.90957331,80.696,80.66,12.70654679]
[1770845293972,1.90957331,80.689,80.65,12.70654679]